bitfinex/quotes_BTCUSD_20220120
["timestamp","ask_amount","ask_price","bid_price","bid_amount"]
[1642649206404,0.713087,41997.0,41996.0,0.24]
[1642649207611,0.703087,41997.0,41996.0,0.24]
[1642649208405,0.714087,41997.0,41996.0,0.24]
[1642649209006,1.11607521,41997.0,41996.0,0.24]
[1642649209453,1.10507521,41997.0,41996.0,0.24]
[1642649210153,0.80507521,41997.0,41996.0,0.24]
[1642649210352,0.714087,41997.0,41996.0,0.24]
[1642649211552,0.703087,41997.0,41996.0,0.24]
[1642649212353,0.714087,41997.0,41996.0,0.24]
[1642649213504,0.703087,41997.0,41996.0,0.24]
[1642649214307,0.565087,41997.0,41996.0,0.24]
[1642649214505,0.66747559,41997.0,41996.0,0.24]
[1642649215506,0.65547559,41997.0,41996.0,0.23993837]
[1642649216306,0.66647559,41997.0,41996.0,0.23993837]
[1642649216960,0.21647559,41997.0,41996.0,0.23993837]
[1642649218160,0.20547559,41997.0,41996.0,0.23993837]
[1642649218356,0.21647559,41997.0,41996.0,0.23993837]
[1642649218556,0.114087,41997.0,41996.0,0.23993837]
[1642649221990,0.103087,41997.0,41996.0,0.23993837]
[1642649222485,0.114087,41997.0,41996.0,0.23993837]
[1642649223587,0.164087,41997.0,41996.0,0.23993837]
[1642649223787,0.564087,41997.0,41996.0,0.23993837]
[1642649224239,0.264087,41997.0,41996.0,0.23993837]
[1642649225242,0.163287,41997.0,41996.0,0.23993837]
[1642649225441,0.152287,41997.0,41996.0,0.23993837]
[1642649225741,0.65318841,41997.0,41996.0,0.23993837]
[1642649226140,0.75318841,41997.0,41996.0,0.23993837]
[1642649226340,0.76418841,41997.0,41996.0,0.23993837]
[1642649227986,0.75318841,41997.0,41996.0,0.23993837]
[1642649228586,0.76418841,41997.0,41996.0,0.23993837]
[1642649228790,0.31498841,41997.0,41996.0,0.23993837]
[1642649229187,0.26498841,41997.0,41996.0,0.23993837]
[1642649229488,0.36498841,41997.0,41996.0,0.23993837]
[1642649230090,0.35398841,41997.0,41996.0,0.23993837]
[1642649230689,0.66498841,41997.0,41996.0,0.23993837]
[1642649230890,0.36498841,41997.0,41996.0,0.23993837]
[1642649231090,0.31498841,41997.0,41996.0,0.23993837]
[1642649231291,0.214087,41997.0,41996.0,0.23993837]
[1642649231490,0.066187,41997.0,41996.0,0.23993837]
[1642649231746,0.06591693,41997.0,41996.0,0.23993837]
[1642649232349,0.07891693,41997.0,41996.0,0.23993837]
[1642649233150,0.024,41997.0,41996.0,0.23993837]
[1642649233545,0.00677238,41998.0,41996.0,0.23993837]
[1642649233745,0.054941,41997.0,41996.0,0.23993837]
[1642649234344,0.013,41997.0,41996.0,0.23993837]
[1642649235488,0.054941,41997.0,41996.0,0.23993837]
[1642649235689,0.354941,41997.0,41996.0,0.23993837]
[1642649236289,0.66575857,41997.0,41996.0,0.23993837]
[1642649237295,0.71365857,41997.0,41996.0,0.23993837]
[1642649237496,0.76365857,41997.0,41996.0,0.23993837]
[1642649237691,0.85065857,41997.0,41996.0,0.23993837]
[1642649238091,0.96976257,41997.0,41996.0,0.23993837]
[1642649238307,0.77220957,41997.0,41996.0,0.23993837]
[1642649238492,0.92220957,41997.0,41996.0,0.23993837]
[1642649238893,0.65,41996.0,41985.0,0.2835]
[1642649239097,0.05955668,41994.0,41982.0,0.27432888]
[1642649239345,0.059561,41990.0,41986.0,0.00022347]
[1642649239542,0.0479,41989.0,41986.0,0.00022347]
[1642649239747,0.22530548,41987.0,41980.0,0.05032661]
[1642649239943,0.0479,41986.0,41981.0,0.00030942]
[1642649240949,0.0486934,41986.0,41981.0,0.00030942]
[1642649241146,0.0486934,41986.0,41980.0,0.00032661]
[1642649241947,0.0479,41986.0,41983.0,0.001669]
[1642649242150,0.36365,41985.0,41983.0,0.001669]
[1642649242350,0.05573447,41985.0,41984.0,0.00025785]
[1642649243190,0.054941,41985.0,41984.0,0.00025785]
[1642649243691,0.354941,41985.0,41984.0,0.00025785]
[1642649243893,0.354941,41985.0,41984.0,0.24025785]
[1642649244293,0.366941,41985.0,41984.0,0.24025785]
[1642649244693,0.63324244,41985.0,41984.0,0.24025785]
[1642649245501,0.68114244,41985.0,41984.0,0.24025785]
[1642649246095,0.66914244,41985.0,41984.0,0.24025785]
[1642649246296,0.36914244,41985.0,41984.0,0.24025785]
[1642649246497,0.38114244,41985.0,41984.0,0.24025785]
[1642649246941,0.38114244,41985.0,41984.0,0.24192511]
[1642649247144,0.44071044,41985.0,41984.0,0.24192511]
[1642649247445,0.78397831,41985.0,41977.0,0.05210486]
[1642649247643,0.33520748,41980.0,41977.0,0.05210486]
[1642649247948,0.0479,41979.0,41978.0,0.00010314]
[1642649250345,0.0599,41979.0,41978.0,0.00010314]
[1642649252490,0.484271,41979.0,41978.0,0.00010314]
[1642649252690,0.551581,41979.0,41978.0,0.00010314]
[1642649253990,0.11521,41979.0,41978.0,0.00010314]
[1642649254245,0.0479,41979.0,41978.0,0.00010314]
[1642649254447,0.0479,41979.0,41978.0,0.24010314]
[1642649254846,0.27444498,41979.0,41978.0,0.24010314]
[1642649255048,0.0599,41979.0,41978.0,0.24010314]
[1642649255851,0.0599,41979.0,41978.0,0.00010314]
[1642649256446,0.25442414,41979.0,41978.0,0.00010314]
[1642649256846,0.0589,41979.0,41978.0,0.00010314]
[1642649257347,0.113841,41979.0,41978.0,0.00010314]
[1642649257772,0.102841,41979.0,41978.0,0.00010314]
[1642649258796,0.113841,41979.0,41978.0,0.00010314]
[1642649261944,0.102841,41979.0,41978.0,0.00010314]
[1642649262540,0.113841,41979.0,41978.0,0.00010314]
[1642649263447,0.113311,41979.0,41978.0,0.00010314]
[1642649264647,0.114311,41979.0,41978.0,0.00010314]
[1642649266307,0.102311,41979.0,41978.0,0.00010314]
[1642649266908,0.114311,41979.0,41978.0,0.00010314]
[1642649268510,0.102311,41979.0,41978.0,0.00010314]
[1642649268712,0.113311,41979.0,41978.0,0.00010314]
[1642649270142,0.102311,41979.0,41978.0,0.00010314]
[1642649270644,0.113311,41979.0,41978.0,0.00010314]
[1642649272746,0.102311,41979.0,41978.0,0.00010314]
[1642649272990,0.114311,41979.0,41978.0,0.00010314]
[1642649273798,0.30427337,41979.0,41978.0,0.00010314]
[1642649274003,0.38369361,41979.0,41978.0,0.00010314]
[1642649274192,0.57187361,41979.0,41978.0,0.00010314]
[1642649274392,1.17107361,41979.0,41978.0,0.00010314]
[1642649274594,1.18507361,41979.0,41978.0,0.00010314]
[1642649274993,1.4263678,41979.0,41978.0,0.00010314]
[1642649276598,1.4373678,41979.0,41978.0,0.00010314]
[1642649278045,1.4873678,41979.0,41978.0,0.00010314]
[1642649278244,1.49414304,41979.0,41978.0,0.00010314]
[1642649278642,1.49514304,41979.0,41978.0,0.00010314]
[1642649279542,1.53013243,41979.0,41978.0,0.00010314]
[1642649279943,1.51813243,41979.0,41978.0,0.00010314]
[1642649280613,1.52913243,41979.0,41978.0,0.00010314]
[1642649282708,1.54013243,41979.0,41978.0,0.00010314]
[1642649282909,1.52913243,41979.0,41978.0,0.00010314]
[1642649283109,1.57913243,41979.0,41978.0,0.22010314]
[1642649283811,1.56813243,41979.0,41978.0,0.22010314]
[1642649284645,1.57913243,41979.0,41978.0,0.22010314]
[1642649285845,1.56813243,41979.0,41978.0,0.22010314]
[1642649286545,1.57913243,41979.0,41978.0,0.22010314]
[1642649287992,1.56813243,41979.0,41978.0,0.22010314]
[1642649288589,1.57913243,41979.0,41978.0,0.21503744]
[1642649289392,0.97993243,41979.0,41978.0,0.21503744]
[1642649289796,0.96893243,41979.0,41978.0,0.21503744]
[1642649290592,0.97993243,41979.0,41978.0,0.21503744]
[1642649291742,0.96893243,41979.0,41978.0,0.21503744]
[1642649292541,0.97993243,41979.0,41978.0,0.21503744]
[1642649293743,0.69954982,41979.0,41978.0,0.21503744]
[1642649294347,0.43225563,41979.0,41978.0,0.21503744]
[1642649294546,0.35507563,41979.0,41978.0,0.21503744]
[1642649294749,0.25507563,41979.0,41978.0,0.21503744]
[1642649294945,0.35507563,41979.0,41978.0,0.21503744]
[1642649295897,0.64407563,41979.0,41978.0,0.21503744]
[1642649296693,0.65607563,41979.0,41978.0,0.21503744]
[1642649297891,0.35607563,41979.0,41978.0,0.21503744]
[1642649298495,0.34407563,41979.0,41978.0,0.21503744]
[1642649298697,0.35607563,41979.0,41978.0,0.21503744]
[1642649298894,0.65607563,41979.0,41978.0,0.21503744]
[1642649299352,0.35607563,41979.0,41978.0,0.21503744]
[1642649299553,0.25607563,41979.0,41978.0,0.21503744]
[1642649299753,0.34407563,41979.0,41978.0,0.21503744]
[1642649300556,0.35607563,41979.0,41978.0,0.21503744]
[1642649300756,0.25607563,41979.0,41978.0,0.21503744]
[1642649300960,0.60607563,41979.0,41978.0,0.21503744]
[1642649301858,0.59407563,41979.0,41978.0,0.21503744]
[1642649302061,0.34407563,41979.0,41978.0,0.21503744]
[1642649302463,0.24407563,41979.0,41978.0,0.21503744]
[1642649302660,0.25507563,41979.0,41978.0,0.21503744]
[1642649303899,0.24407563,41979.0,41978.0,0.21503744]
[1642649304698,0.25607563,41979.0,41978.0,0.21503744]
[1642649305800,0.24407563,41979.0,41978.0,0.21503744]
[1642649306600,0.25507563,41979.0,41978.0,0.21503744]
[1642649307752,0.24407563,41979.0,41978.0,0.21503744]
[1642649308551,0.25607563,41979.0,41978.0,0.21503744]
[1642649309754,0.24407563,41979.0,41978.0,0.21503744]
[1642649310600,0.25507563,41979.0,41978.0,0.21503744]
[1642649311801,0.49407563,41979.0,41978.0,0.21503744]
[1642649312006,0.59407563,41979.0,41978.0,0.21503744]
[1642649312600,0.60607563,41979.0,41978.0,0.21495971]
[1642649313201,0.35607563,41979.0,41978.0,0.21495971]
[1642649313600,0.25607563,41979.0,41978.0,0.21495971]
[1642649313802,0.34407563,41979.0,41978.0,0.21495971]
[1642649314644,0.35607563,41979.0,41978.0,0.21495971]
[1642649314844,0.25607563,41979.0,41978.0,0.21495971]
[1642649315846,0.24407563,41979.0,41978.0,0.21495971]
[1642649316647,0.25607563,41979.0,41978.0,0.21495971]
[1642649316845,0.20607563,41979.0,41978.0,0.21495971]
[1642649317446,0.62607563,41979.0,41978.0,0.21495971]
[1642649317645,0.72607563,41979.0,41978.0,0.21495971]
[1642649317845,0.71407563,41979.0,41978.0,0.21495971]
[1642649318690,0.72607563,41979.0,41978.0,0.21495971]
[1642649319993,0.76407563,41979.0,41978.0,0.21495971]
[1642649320191,0.71643363,41979.0,41978.0,0.21495971]
[1642649320394,0.71407563,41979.0,41978.0,0.21495971]
[1642649320593,0.72607563,41979.0,41978.0,0.21495971]
[1642649321841,0.71407563,41979.0,41978.0,0.21495971]
[1642649322247,0.76407563,41979.0,41978.0,0.21495971]
[1642649322544,0.77607563,41979.0,41978.0,0.21495971]
[1642649323748,0.76407563,41979.0,41978.0,0.21495971]
[1642649324548,0.77607563,41979.0,41978.0,0.21495971]
[1642649325903,0.76407563,41979.0,41978.0,0.21495971]
[1642649326697,0.77607563,41979.0,41978.0,0.21495971]
[1642649328404,0.76407563,41979.0,41978.0,0.21495971]
[1642649328599,0.77607563,41979.0,41978.0,0.21495971]
[1642649329842,0.71407563,41979.0,41978.0,0.21495971]
[1642649330642,0.72607563,41979.0,41978.0,0.21495971]
[1642649331742,0.76407563,41979.0,41978.0,0.21495971]
[1642649332640,0.77607563,41979.0,41978.0,0.21495971]
[1642649333898,0.76407563,41979.0,41978.0,0.21495971]
[1642649334597,0.77607563,41979.0,41978.0,0.21495971]
[1642649335797,0.75907563,41979.0,41978.0,0.21495971]
[1642649336604,0.77107563,41979.0,41978.0,0.21495971]
[1642649337852,0.75907563,41979.0,41978.0,0.21495971]
[1642649338552,0.77107563,41979.0,41978.0,0.21495971]
[1642649339758,0.75907563,41979.0,41978.0,0.21495971]
[1642649340594,0.77007563,41979.0,41978.0,0.21495971]
[1642649341799,0.75907563,41979.0,41978.0,0.21495971]
[1642649342800,0.77007563,41979.0,41978.0,0.21495971]
[1642649343800,0.75907563,41979.0,41978.0,0.21495971]
[1642649344644,0.77007563,41979.0,41978.0,0.21495971]
[1642649345846,0.75907563,41979.0,41978.0,0.21495971]
[1642649346652,0.77007563,41979.0,41978.0,0.21495971]
[1642649347149,0.76806862,41979.0,41978.0,0.21495971]
[1642649347994,0.75706862,41979.0,41978.0,0.21495971]
[1642649348595,0.76806862,41979.0,41978.0,0.21495971]
[1642649349897,0.75706862,41979.0,41978.0,0.21495971]
[1642649350098,0.33706862,41979.0,41978.0,0.21495971]
[1642649350497,0.23706862,41979.0,41978.0,0.21495971]
[1642649350697,0.34806862,41979.0,41978.0,0.21495971]
[1642649351949,0.33706862,41979.0,41978.0,0.21495971]
[1642649352549,0.34806862,41979.0,41978.0,0.21495971]
[1642649353447,0.24806862,41979.0,41978.0,0.21495971]
[1642649353648,0.34806862,41979.0,41978.0,0.21495971]
[1642649354548,0.24906862,41979.0,41978.0,0.21495971]
[1642649355803,0.23706862,41979.0,41978.0,0.21495971]
[1642649356706,0.24806862,41979.0,41978.0,0.21495971]
[1642649357904,0.23706862,41979.0,41978.0,0.21495971]
[1642649358104,0.14407563,41979.0,41978.0,0.21495971]
[1642649358703,0.15507563,41979.0,41978.0,0.21495971]
[1642649359552,0.25507563,41979.0,41978.0,0.21495971]
[1642649359948,0.24407563,41979.0,41978.0,0.21495971]
[1642649360547,0.25607563,41979.0,41978.0,0.21495971]
[1642649361950,0.29082565,41979.0,41978.0,0.21495971]
[1642649362155,0.54082565,41979.0,41978.0,0.21495971]
[1642649362552,0.65182565,41979.0,41978.0,0.21495971]
[1642649363194,0.60507563,41979.0,41978.0,0.21495971]
[1642649364392,0.59407563,41979.0,41978.0,0.21495971]
[1642649364594,0.35507563,41979.0,41978.0,0.21495971]
[1642649365895,0.34407563,41979.0,41978.0,0.21495971]
[1642649366294,0.24407563,41979.0,41978.0,0.21495971]
[1642649366593,0.35507563,41979.0,41978.0,0.21495971]
[1642649367646,0.25507563,41979.0,41978.0,0.21495971]
[1642649367947,0.24407563,41979.0,41978.0,0.21495971]
[1642649368348,0.19407563,41979.0,41978.0,0.21495971]
[1642649368546,0.20507563,41979.0,41978.0,0.21495971]
[1642649370148,0.50507563,41979.0,41978.0,0.21495971]
[1642649370348,0.49407563,41979.0,41978.0,0.21495971]
[1642649370609,0.20507563,41979.0,41978.0,0.21495971]
[1642649371812,0.19407563,41979.0,41978.0,0.21495971]
[1642649372212,0.19407563,41979.0,41978.0,0.21488639]
[1642649372616,0.20507563,41979.0,41978.0,0.21488639]
[1642649373013,0.25279452,41979.0,41978.0,0.21488639]
[1642649373814,0.24179452,41979.0,41978.0,0.21488639]
[1642649374012,0.29179452,41979.0,41978.0,0.21488639]
[1642649374652,0.30279452,41979.0,41978.0,0.21488639]
[1642649375054,0.40279452,41979.0,41978.0,0.21488639]
[1642649375854,0.39179452,41979.0,41978.0,0.21488639]
[1642649376055,0.29179452,41979.0,41978.0,0.21488639]
[1642649376655,0.30279452,41979.0,41978.0,0.21488639]
[1642649376855,0.40279452,41979.0,41978.0,0.21488639]
[1642649377655,0.35279452,41979.0,41978.0,0.21488639]
[1642649377860,0.34179452,41979.0,41978.0,0.21488639]
[1642649378697,0.40279452,41979.0,41978.0,0.21488639]
[1642649379900,0.39179452,41979.0,41978.0,0.21488639]
[1642649380100,0.29179452,41979.0,41978.0,0.21488639]
[1642649380301,0.39179452,41979.0,41978.0,0.21488639]
[1642649380704,0.40279452,41979.0,41978.0,0.21488639]
[1642649381948,0.39179452,41979.0,41978.0,0.21488639]
[1642649382148,0.29179452,41979.0,41978.0,0.21488639]
[1642649382550,0.30479452,41979.0,41978.0,0.21488639]
[1642649383055,0.40479452,41979.0,41978.0,0.21488639]
[1642649383851,0.39179452,41979.0,41978.0,0.21488639]
[1642649384250,0.29179452,41979.0,41978.0,0.21488639]
[1642649384452,0.29407563,41979.0,41978.0,0.21488639]
[1642649384650,0.30607563,41979.0,41978.0,0.21488639]
[1642649384851,0.15607563,41979.0,41978.0,0.21488639]
[1642649385794,0.14407563,41979.0,41978.0,0.21488639]
[1642649386596,0.15507563,41979.0,41978.0,0.21488639]
[1642649387801,0.14407563,41979.0,41978.0,0.21488639]
[1642649388600,0.15607563,41979.0,41978.0,0.21488639]
[1642649389758,0.19407563,41979.0,41978.0,0.21488639]
[1642649390661,0.20607563,41979.0,41978.0,0.21488639]
[1642649391861,0.19407563,41979.0,41978.0,0.21488639]
[1642649392561,0.20507563,41979.0,41978.0,0.21488639]
[1642649393019,0.25507563,41979.0,41978.0,0.21482406]
[1642649393522,0.20507563,41979.0,41978.0,0.21482406]
[1642649393718,0.15507563,41979.0,41978.0,0.21482406]
[1642649393918,0.14407563,41979.0,41978.0,0.21482406]
[1642649394519,0.19407563,41979.0,41978.0,0.21482406]
[1642649394717,0.20507563,41979.0,41978.0,0.21482406]
[1642649395820,0.19407563,41979.0,41978.0,0.21482406]
[1642649396620,0.20507563,41979.0,41978.0,0.21482406]
[1642649396851,0.25507563,41979.0,41978.0,0.21482406]
[1642649397852,0.24407563,41979.0,41978.0,0.21482406]
[1642649398755,0.25507563,41979.0,41978.0,0.21482406]
[1642649399952,0.29172138,41979.0,41978.0,0.21482406]
[1642649400604,0.30272138,41979.0,41978.0,0.21482406]
[1642649401005,0.25507563,41979.0,41978.0,0.21482406]
[1642649401903,0.202311,41979.0,41978.0,0.21482406]
[1642649402705,0.214311,41979.0,41978.0,0.21482406]
[1642649403805,0.202311,41979.0,41978.0,0.21482406]
[1642649404450,0.25238351,41979.0,41978.0,0.21482406]
[1642649404651,0.26438351,41979.0,41978.0,0.21482406]
[1642649405251,0.26431078,41979.0,41978.0,0.21482406]
[1642649405851,0.25231078,41979.0,41978.0,0.21473506]
[1642649406152,0.52538245,41979.0,41978.0,0.18805107]
[1642649406564,0.55677669,41978.0,41977.0,0.05210486]
[1642649406758,0.55677669,41978.0,41968.0,0.00222399]
[1642649406759,0.119181,41974.0,41968.0,0.00222399]
[1642649406961,0.32163009,41969.0,41968.0,0.00222399]
[1642649407159,1.0188026,41969.0,41968.0,0.00222399]
[1642649407356,1.0737436,41969.0,41968.0,0.00222399]
[1642649407655,1.0737436,41969.0,41968.0,0.0011]
[1642649408699,1.0737436,41969.0,41968.0,0.00138367]
[1642649408700,1.0847436,41969.0,41968.0,0.00138367]
[1642649408901,0.5,41968.0,41966.0,0.00112391]
[1642649409106,1.56342718,41967.0,41966.0,0.00112391]
[1642649409302,2.21238143,41967.0,41966.0,0.00112391]
[1642649409501,0.45,41966.0,41964.0,0.0011]
[1642649409702,1.08609225,41965.0,41964.0,0.0011]
[1642649410101,1.18609225,41965.0,41964.0,0.0011]
[1642649410405,0.48726166,41965.0,41964.0,0.0011]
[1642649410600,0.48726166,41965.0,41961.0,0.69044541]
[1642649410601,0.054721,41964.0,41961.0,0.69044541]
[1642649410802,0.31616814,41962.0,41961.0,0.69044541]
[1642649411002,0.63760434,41962.0,41961.0,0.69044541]
[1642649411304,0.63760434,41962.0,41960.0,0.00112404]
[1642649411505,1.10537174,41961.0,41960.0,0.00112404]
[1642649411804,1.18883174,41961.0,41960.0,0.00112404]
[1642649411962,1.18883174,41961.0,41960.0,0.00143347]
[1642649412363,1.49316307,41961.0,41960.0,0.00030943]
[1642649412564,1.60416307,41961.0,41960.0,0.00030943]
[1642649413164,1.60416307,41961.0,41958.0,0.00228407]
[1642649413165,0.35,41960.0,41958.0,0.00228407]
[1642649413362,1.14904855,41960.0,41958.0,0.00228407]
[1642649413564,1.24904855,41960.0,41958.0,0.00116]
[1642649413763,0.054721,41959.0,41957.0,0.00442408]
[1642649413963,0.102621,41958.0,41957.0,0.00442408]
[1642649414565,0.113621,41958.0,41957.0,0.00442408]
[1642649414765,0.18886724,41958.0,41957.0,0.0033]
[1642649415499,0.28526356,41958.0,41957.0,0.0033]
[1642649415699,0.18886724,41958.0,41957.0,0.0033]
[1642649415999,0.17786724,41958.0,41957.0,0.0033]
[1642649416700,0.18886724,41958.0,41957.0,0.0033]
[1642649417703,0.4,41957.0,41955.0,0.00322307]
[1642649417902,0.352621,41956.0,41955.0,0.00322307]
[1642649418104,0.452621,41956.0,41955.0,0.00322307]
[1642649418404,0.202621,41956.0,41955.0,0.0021]
[1642649418601,0.213621,41956.0,41955.0,0.0021]
[1642649419002,0.55023024,41956.0,41955.0,0.0021]
[1642649419265,0.55023024,41956.0,41933.0,0.1]
[1642649419266,0.2,41952.0,41933.0,0.1]
[1642649419466,0.0012965,41939.0,41933.0,0.1]
[1642649419665,0.0479,41938.0,41934.0,0.10044694]
[1642649419862,0.05468327,41938.0,41934.0,0.10044694]
[1642649420059,0.05,41937.0,41935.0,0.00042975]
[1642649420261,0.054721,41935.0,41934.0,0.09542975]
[1642649420463,0.102621,41935.0,41934.0,0.09542975]
[1642649421261,0.29982372,41935.0,41934.0,0.09542975]
[1642649421462,0.102621,41935.0,41934.0,0.37305981]
[1642649421663,0.0479,41935.0,41934.0,0.37305981]
[1642649421862,0.0479,41944.0,41934.0,0.37305981]
[1642649422061,0.00179829,41949.0,41934.0,0.37763006]
[1642649422265,6.876e-05,41939.0,41934.0,0.37763006]
[1642649422461,6.876e-05,41939.0,41934.0,0.27763006]
[1642649422661,6.876e-05,41939.0,41933.0,0.29125722]
[1642649423303,6.876e-05,41939.0,41934.0,0.00121304]
[1642649424401,6.876e-05,41939.0,41934.0,0.25162396]
[1642649424607,0.00506876,41939.0,41934.0,0.25157927]
[1642649424808,0.00506876,41939.0,41936.0,0.01615704]
[1642649425003,0.00109991,41949.0,41939.0,0.00123567]
[1642649425205,0.00109991,41949.0,41940.0,0.432857]
[1642649425404,0.00109991,41949.0,41940.0,0.83316]
[1642649425405,0.00015471,41948.0,41940.0,0.83316]
[1642649425702,0.00110021,41949.0,41947.0,0.31716039]
[1642649425901,0.00110021,41949.0,41942.0,0.00121292]
[1642649426102,0.00015471,41948.0,41942.0,0.01736996]
[1642649426501,0.00013752,41947.0,41942.0,0.01736996]
[1642649426753,0.00013752,41947.0,41942.0,0.27425204]
[1642649426952,0.00012033,41946.0,41944.0,0.31892582]
[1642649427355,0.00010314,41945.0,41944.0,0.31892582]
[1642649427751,0.00010314,41945.0,41943.0,0.0012129]
[1642649427951,0.00010314,41945.0,41942.0,0.27425204]
[1642649428152,2.40228596,41946.0,41944.0,0.01615704]
[1642649428553,0.00010314,41945.0,41944.0,0.01615704]
[1642649428756,0.02810314,41945.0,41944.0,0.01615704]
[1642649429966,0.00010314,41945.0,41942.0,0.00121291]
[1642649430157,0.07534938,41945.0,41942.0,0.00121291]
[1642649430357,8.595e-05,41944.0,41942.0,0.00121291]
[1642649430603,8.595e-05,41944.0,41942.0,0.01815704]
[1642649430804,6.876e-05,41943.0,41942.0,0.01815704]
[1642649431003,6.876e-05,41943.0,41942.0,0.31368277]
[1642649431406,6.876e-05,41943.0,41942.0,0.56368277]
[1642649431806,6.876e-05,41943.0,41942.0,0.31168277]
[1642649432003,6.876e-05,41943.0,41942.0,0.24552573]
[1642649432606,0.01706876,41943.0,41942.0,0.25052573]
[1642649433006,0.01706876,41943.0,41942.0,0.56603235]
[1642649433207,0.01706876,41943.0,41942.0,0.66603235]
[1642649433407,0.01706876,41943.0,41942.0,2.21078935]
[1642649433606,0.07524624,41945.0,41943.0,0.95]
[1642649433807,0.07524624,41945.0,41944.0,1.70016479]
[1642649434006,0.07524624,41945.0,41944.0,1.75016479]
[1642649434450,0.07524624,41945.0,41944.0,1.432857]
[1642649434684,0.07524624,41945.0,41944.0,1.446857]
[1642649434850,0.07524624,41945.0,41944.0,1.46301404]
[1642649435254,0.07524624,41945.0,41944.0,1.56301404]
[1642649435949,0.07524624,41945.0,41944.0,1.54901404]
[1642649436550,0.07524624,41945.0,41944.0,1.49901404]
[1642649436751,0.07524624,41945.0,41944.0,0.56301404]
[1642649436950,0.07524624,41945.0,41944.0,0.22805704]
[1642649437352,0.07524624,41945.0,41944.0,0.82805704]
[1642649438006,0.07524624,41945.0,41944.0,0.81405704]
[1642649438210,0.00110023,41949.0,41945.0,0.95665877]
[1642649438410,0.00110023,41949.0,41948.0,1.334957]
[1642649438608,0.00110023,41949.0,41948.0,1.67520138]
[1642649438808,0.9954,41964.0,41948.0,1.77520138]
[1642649439008,0.9954,41964.0,41957.0,0.35728134]
[1642649439211,0.5988,41970.0,41963.0,0.2586758]
[1642649439212,0.00127164,41970.0,41963.0,0.2586758]
[1642649439412,0.9954,41974.0,41963.0,0.2586758]
[1642649439610,0.000361,41964.0,41963.0,0.2586758]
[1642649440609,2.29979911,41964.0,41963.0,0.2786758]
[1642649441953,2.29979911,41964.0,41963.0,0.2586758]
[1642649442153,2.29979911,41964.0,41963.0,0.50556028]
[1642649442752,2.29979911,41964.0,41963.0,0.52956028]
[1642649442960,2.29979911,41964.0,41963.0,0.57956028]
[1642649443554,2.29979911,41964.0,41963.0,0.59571732]
[1642649443954,2.29979911,41964.0,41963.0,0.57171732]
[1642649444554,2.29979911,41964.0,41963.0,0.58971732]
[1642649444755,2.29979911,41964.0,41963.0,0.63971732]
[1642649445503,0.000361,41964.0,41963.0,0.63971732]
[1642649445704,0.000361,41964.0,41963.0,1.02467432]
[1642649445905,0.000361,41964.0,41963.0,1.00667432]
[1642649446702,0.000361,41964.0,41963.0,1.02367432]
[1642649447902,0.000361,41964.0,41963.0,1.00667432]
[1642649448703,0.000361,41964.0,41963.0,1.02367432]
[1642649449460,0.000361,41964.0,41963.0,1.04959432]
[1642649449857,0.000361,41964.0,41963.0,1.08049432]
[1642649450257,0.000361,41964.0,41963.0,1.83049432]
[1642649450663,0.000361,41964.0,41963.0,1.82157432]
[1642649451057,0.000361,41964.0,41963.0,1.07157432]
[1642649451257,0.000361,41964.0,41963.0,1.37157432]
[1642649451559,0.000361,41964.0,41963.0,1.47157432]
[1642649451957,0.000361,41964.0,41963.0,1.45457432]
[1642649452558,0.000361,41964.0,41963.0,1.47157432]
[1642649453804,0.000361,41964.0,41963.0,1.45457432]
[1642649454003,0.000361,41964.0,41963.0,1.15457432]
[1642649454705,0.000361,41964.0,41963.0,1.17257432]
[1642649455305,0.000361,41964.0,41963.0,1.16757432]
[1642649455904,0.000361,41964.0,41963.0,1.14957432]
[1642649456755,0.000361,41964.0,41963.0,1.16757432]
[1642649457756,0.000361,41964.0,41963.0,1.14957432]
[1642649458264,0.000361,41964.0,41963.0,1.24957432]
[1642649458657,0.000361,41964.0,41963.0,1.26957432]
[1642649458856,0.000361,41964.0,41963.0,1.21957432]
[1642649459062,0.000361,41964.0,41963.0,1.28147432]
[1642649459858,0.000361,41964.0,41963.0,1.26147432]
[1642649460702,0.000361,41964.0,41963.0,1.27847432]
[1642649461805,0.000361,41964.0,41963.0,1.26147432]
[1642649462405,0.000361,41964.0,41963.0,0.96458984]
[1642649462606,0.000361,41964.0,41963.0,0.98458984]
[1642649463907,0.000361,41964.0,41963.0,0.96458984]
[1642649464751,0.000361,41964.0,41963.0,0.99158984]
[1642649465051,0.000361,41964.0,41963.0,0.89158984]
[1642649465857,0.000361,41964.0,41963.0,0.86458984]
[1642649466654,0.000361,41964.0,41963.0,0.89158984]
[1642649466853,0.000361,41964.0,41963.0,0.83468984]
[1642649467999,0.000361,41964.0,41963.0,0.85768984]
[1642649468605,0.000361,41964.0,41963.0,0.87968984]
[1642649469604,0.000361,41964.0,41963.0,0.83178984]
[1642649469804,0.000361,41964.0,41963.0,0.80978984]
[1642649470703,0.000361,41964.0,41963.0,0.75078984]
[1642649470906,0.000361,41964.0,41963.0,1.00399583]
[1642649471110,0.000361,41964.0,41963.0,1.15399583]
[1642649471757,0.000361,41964.0,41963.0,1.11299583]
[1642649472359,0.000361,41964.0,41963.0,1.21299583]
[1642649472757,0.000361,41964.0,41963.0,1.23099583]
[1642649472957,0.000361,41964.0,41963.0,1.63099583]
[1642649473558,0.000361,41964.0,41963.0,2.01021015]
[1642649473763,0.000361,41964.0,41963.0,1.23099583]
[1642649473959,0.000361,41964.0,41963.0,1.21299583]
[1642649474460,0.000361,41964.0,41963.0,1.22489583]
[1642649474664,0.000361,41964.0,41963.0,1.29407335]
[1642649474861,0.000361,41964.0,41963.0,2.55707335]
[1642649475508,0.000361,41964.0,41963.0,2.96272722]
[1642649475906,0.000361,41964.0,41963.0,2.62985023]
[1642649476107,0.00110055,41966.0,41964.0,0.95]
[1642649476310,0.00110055,41966.0,41965.0,2.80034456]
[1642649476507,0.00024066,41978.0,41969.0,0.05955]
[1642649476707,0.00024066,41978.0,41970.0,0.85767468]
[1642649476909,0.00022347,41977.0,41975.0,0.35166925]
[1642649477109,0.00022347,41977.0,41976.0,0.4409301]
[1642649477306,0.9778,41983.0,41976.0,0.45111404]
[1642649477505,0.9778,41983.0,41977.0,0.29036229]
[1642649477704,0.00024066,41978.0,41976.0,0.06615704]
[1642649477908,0.00024066,41978.0,41977.0,0.87731573]
[1642649478105,0.3053,41988.0,41977.0,0.92731573]
[1642649478406,1.57908073,41981.0,41979.0,0.33612024]
[1642649478610,0.00039537,41987.0,41979.0,0.40227728]
[1642649478806,0.00027504,41980.0,41979.0,0.40227728]
[1642649479013,0.00037818,41986.0,41979.0,0.58934266]
[1642649479262,0.3053,41988.0,41979.0,0.58934266]
[1642649479263,0.3053,41988.0,41984.0,0.00128752]
[1642649479461,0.3053,41988.0,41985.0,0.27241764]
[1642649479658,0.00039537,41987.0,41986.0,0.0012597]